[Event "98th Argentine Championship 2023"]
[Site "Buenos Aires"]
[Date "2023.11.07"]
[Round "10.2"]
[White "Peralta, Fernando"]
[Black "Valerga, Diego"]
[Result "1-0"]
[ECO "E48"]
[WhiteElo "2580"]
[BlackElo "2428"]
[Annotator "TA"]
[PlyCount "77"]
[EventDate "2023.10.27"]
[EventType "tourn"]
[EventCountry "ARG"]
[SourceTitle "playchess.com"]
[Source "ChessBase"]
[SourceQuality "1"]
[TimeControl "40/5400+30:1800+30"]

{[%evp 15,77,0,14,0,0,-26,0,-10,0,0,40,17,59,12,2,15,40,38,43,22,49,37,53,0,79,71,72,84,121,51,89,52,72,51,83,44,48,50,95,102,323,299,315,287,484,472,477,471,471,472,518,512,512,492,525,525,525,525,523,524,531,527,491,476]} 1. d4 {[%emt 0:00:06]} Nf6 {[%emt 0:00:08]} 2. c4 {[%emt 0:00:05]} e6 {[%emt 0:00:06]} 3. Nc3 {[%emt 0:00:14]} Bb4 {[%emt 0:00:09]} 4. e3 {[%emt 0:00:03]} O-O {[%emt 0:00:11]} 5. Bd3 {[%emt 0:00:11]} d5 {[%emt 0:00:36]} 6. cxd5 {[%emt 0:00:34]} exd5 {[%emt 0:00:11]} 7. Nge2 {[%emt 0:00:24]} c5 {[%emt 0:03:23]} 8. O-O {[%emt 0:02:10]} Nc6 {[%emt 0:09:58]} 9. f3 {[%emt 0:01:11] E48: Nimzo-Indian: Rubinstein: 5 Bd3 d5 including 6 Ne2, but excluding 6 a3.} Re8 {[%emt 0:03:09]} 10. Kh1 {[%emt 0:00:30]} (10. a3 $5 {[%cal Ra3b4]} Bxc3 11. bxc3 $11) 10... h6 {[%emt 0:01:27]} 11. Rg1 {[%emt 0:05:31] [#] The position is equal.} h5 $146 {[%emt 0:09:57]} (11... Bd7 {keeps more tension.} 12. g4 Rc8 13. g5 hxg5 14. Rxg5 Ne4) ({Predecessor:} 11... cxd4 12. exd4 Be6 13. g4 Qd7 14. Qe1 Nh7 15. Qg3 Bd6 16. Qg2 f6 17. f4 Rad8 {1-0 McShane,L (2685)-Georgiadis,N (2482) World op 43rd 2015 (9)}) 12. a3 {[%emt 0:10:47]} cxd4 {[%emt 0:02:16]} (12... Bxc3 $5 13. bxc3 Bd7 $11) 13. exd4 {[%emt 0:00:10]} ({Much worse is} 13. Nxd4 Bc5 $11) 13... Bd6 {[%emt 0:11:34][%cal Od6h2]} 14. g3 {[%emt 0:14:32]} (14. Rf1 $14) 14... Be6 {[%emt 0:07:04]} 15. Bf4 {[%emt 0:10:02]} Rc8 {[%emt 0:03:39]} 16. Qd2 {[%emt 0:14:08]} Be7 {[%emt 0:08:44]} 17. Rae1 {[%emt 0:10:01]} Nd7 {[%emt 0:08:24]} 18. Be3 {[%emt 0:02:25]} Bf6 {[%emt 0:05:54]} 19. Bb1 {[%emt 0:01:05]} (19. g4 $14) 19... Nf8 {[%emt 0:00:27]} (19... Nb6 $11 {remains equal.}) 20. Nf4 $16 {[%emt 0:01:06]} g6 {[%emt 0:00:26]} 21. Ba2 {[%emt 0:01:36] White is more active.} Ne7 {[%emt 0:01:21] [#]} 22. Re2 {[%emt 0:02:41]} (22. g4 $1 $16 {[%cal Rg4h5]}) 22... Qd7 {[%emt 0:00:22]} 23. Rge1 {[%emt 0:00:47]} Red8 {[%emt 0:01:35]} 24. Qd1 {[%emt 0:04:38]} Qd6 {[%emt 0:02:21]} 25. Bf2 {[%emt 0:04:46]} Rd7 {[%emt 0:02:40]} 26. Nd3 {[%emt 0:00:30]} Nf5 {[%emt 0:06:37]} 27. Nc5 {[%emt 0:04:06]} Re7 $2 {[%emt 0:01:58] [#] A mistake that costs the game.} (27... Bxd4 $16 28. Nxd7 (28. Bxd4 Rxc5 29. Bxc5 Qxc5 $16) 28... Bxc3) 28. N3e4 $1 $18 {[%emt 0:01:21][%mdl 512]} dxe4 {[%emt 0:00:29]} 29. Nxe4 {[%emt 0:00:02]} Bxa2 $2 {[%emt 0:05:45]} (29... Bd5 {was necessary.}) 30. Nxd6 {[%emt 0:00:07] White is clearly winning.} Rxe2 {[%emt 0:00:22]} 31. Rxe2 {[%emt 0:01:20]} Nxd6 {[%emt 0:00:17]} 32. b3 {[%emt 0:00:07] Against Bc4} Bg5 {[%emt 0:03:05]} 33. f4 {[%emt 0:01:33]} ({And not} 33. Rxa2 Rc1 $11) 33... Bxb3 {[%emt 0:00:30]} 34. Qxb3 {[%emt 0:00:09]} Bf6 {[%emt 0:00:06]} 35. Qb4 {[%emt 0:02:48]} Rd8 {[%emt 0:00:37]} 36. d5 {[%emt 0:02:55]} b6 {[%emt 0:00:18]} 37. Bd4 {[%emt 0:00:23]} Bxd4 {[%emt 0:00:34]} 38. Qxd4 {[%emt 0:00:04] Hoping for Qf6.} Nd7 {[%emt 0:00:06] Prevents Qf6.} 39. Qa4 {[%emt 0:02:56] Weighted Error Value: White=0.13 (very precise) /Black=0.30} 1-0

[Event "98th Argentine Championship 2023"]
[Site "Buenos Aires"]
[Date "2023.11.07"]
[Round "10.3"]
[White "Tristan, Leonardo"]
[Black "Krysa, Leandro"]
[Result "1/2-1/2"]
[ECO "D02"]
[WhiteElo "2523"]
[BlackElo "2546"]
[Annotator "TA"]
[PlyCount "54"]
[EventDate "2023.10.27"]
[EventType "tourn"]
[EventCountry "ARG"]
[SourceTitle "playchess.com"]
[Source "ChessBase"]
[SourceQuality "1"]
[TimeControl "40/5400+30:1800+30"]

{[%evp 9,54,-29,-28,-29,-27,-28,-25,-18,-30,-41,-36,-26,-17,-23,-22,-32,-20,-52,-42,-55,-16,-38,-22,-28,-24,-32,-16,-75,0,-35,-27,-35,-19,-25,-18,-29,-20,-41,0,-14,0,-47,0,-12,0,-58,0]} 1. d4 {[%emt 0:02:36][%cal Bd2d4,Bd4c5][%mdl 32]} d5 {[%emt 0:00:11]} 2. Nf3 {[%emt 0:00:11]} Nf6 {[%emt 0:00:17]} 3. c3 {[%emt 0:00:07]} c5 {[%emt 0:00:42]} 4. dxc5 {[%emt 0:00:06]} e6 {[%emt 0:00:26]} 5. b4 {[%emt 0:00:10]} a5 $1 {[%emt 0:00:43]} 6. e3 {[%emt 0:00:18] D02: 1 d4 d5 2 Nf3 sidelines, including 2...Nf6 3 g3 and 2...Nf6 3 Bf4.} axb4 {[%emt 0:00:22]} 7. cxb4 {[%emt 0:00:05]} b6 $1 {[%emt 0:00:06]} 8. a4 {[%emt 0:00:31] Black has an edge.} bxc5 {[%emt 0:02:36]} 9. b5 {[%emt 0:00:07]} Bd6 {[%emt 0:10:58]} 10. Be2 {[%emt 0:03:23]} Bb7 {[%emt 0:01:28]} 11. Bb2 {[%emt 0:00:24]} Nbd7 {[%emt 0:00:39]} 12. Nbd2 {[%emt 0:00:24]} Bc7 {[%emt 0:02:54]} 13. O-O {[%emt 0:04:29]} O-O $1 {[%emt 0:05:49]} 14. Qc2 {[%emt 0:00:57]} h6 {[%emt 0:04:31]} 15. Rfd1 {[%emt 0:02:55]} Re8 {[%emt 0:02:07] [#]} 16. h3 $146 {[%emt 0:14:09]} ({Predecessor:} 16. Ne1 c4 17. Bf3 Qb8 18. g3 Ba5 19. Bc3 Nc5 20. Nb1 Nfd7 21. Qb2 f6 22. Bxa5 Rxa5 {0-1 Xie,B (2119)-Ruiz Castillo,J (2454) Richardson DCC 04 2022 (7)}) 16... Qe7 {[%emt 0:17:19]} 17. Nh2 {[%emt 0:35:25]} Red8 {[%emt 0:17:21]} (17... c4 {is more complex.} 18. Ng4 Nxg4 19. Bxg4 Rec8) 18. Nhf1 {[%emt 0:03:27]} (18. Ng4 $11 {keeps the balance.}) 18... Ra7 {[%emt 0:11:57]} (18... Rdc8 $17) 19. Ra2 {[%emt 0:15:58]} (19. e4 $5) 19... Rda8 {[%emt 0:01:14]} 20. Rda1 {[%emt 0:00:14]} Bb6 {[%emt 0:04:30]} 21. Bc3 {[%emt 0:10:02]} Qd8 {[%emt 0:00:43]} 22. Qb2 {[%emt 0:00:45]} c4 {[%emt 0:05:21]} 23. Bd4 {[%emt 0:01:07]} Ra5 {[%emt 0:01:20]} (23... Nc5 $5 {[%cal Rc5a4]} 24. a5 Rxa5 25. Rxa5 Bxa5 26. Bxc5 c3 $15) 24. Bc3 {[%emt 0:02:30]} R5a7 {[%emt 0:00:10]} 25. Bd4 {[%emt 0:00:05]} Ra5 {[%emt 0:02:16]} (25... Nc5 $5 {[%cal Rc5a4]} 26. a5 Rxa5 27. Rxa5 Bxa5 $15) 26. Bc3 {[%emt 0:00:07]} R5a7 {[%emt 0:00:13]} (26... Nc5 $11 27. Bxa5 Bxa5) 27. Bd4 $15 {[%emt 0:00:05]} Ra5 {[%emt 0:02:08] Weighted Error Value: White=0.09 (flawless) /Black=0.15 (very precise)} ({Black should play} 27... Nc5 $15 28. Bd1 Nd3 29. Bxb6 Qxb6) 1/2-1/2

[Event "98th Argentine Championship 2023"]
[Site "Buenos Aires"]
[Date "2023.11.07"]
[Round "11.2"]
[White "Krysa, Leandro"]
[Black "Peralta, Fernando"]
[Result "1/2-1/2"]
[ECO "E06"]
[WhiteElo "2546"]
[BlackElo "2580"]
[Annotator "TA"]
[PlyCount "77"]
[EventDate "2023.10.27"]
[EventType "tourn"]
[EventCountry "ARG"]
[SourceTitle "playchess.com"]
[Source "ChessBase"]
[SourceQuality "1"]
[TimeControl "40/5400+30:1800+30"]

{[%evp 12,77,17,15,39,20,27,27,27,4,0,11,2,0,0,0,0,0,0,0,0,0,0,-64,-59,-53,-53,-47,-46,-33,-30,-48,-65,-62,-70,-84,0,0,0,0,0,-9,0,-5,0,0,0,-4,0,12,7,0,0,0,0,0,18,16,16,13,15,0,0,0,4,0,0,0]} 1. g3 {[%emt 0:00:09]} d5 {[%emt 0:01:11]} 2. Nf3 {[%emt 0:00:17]} Nf6 {[%emt 0:00:12]} 3. Bg2 {[%emt 0:00:11]} e6 {[%emt 0:00:05]} 4. O-O {[%emt 0:00:36]} Be7 {[%emt 0:00:06]} 5. c4 {[%emt 0:01:13]} O-O {[%emt 0:00:22]} 6. d4 {[%emt 0:00:30]} c6 {[%emt 0:00:17]} 7. Nc3 {[%emt 0:01:26]} a5 $1 {[%emt 0:00:40][%mdl 4] outshines the older 7...Nbd7. E06: Closed Catalan: Early deviations.} 8. Re1 {[%emt 0:00:40]} Ne4 {[%emt 0:02:26] [#]} 9. Bf4 $146 {[%emt 0:01:30]} ({Predecessor:} 9. e3 f5 10. Qc2 Nd7 11. Ne2 g5 12. b3 a4 13. Rb1 Bd6 14. Nd2 Ndf6 15. f3 Nxd2 16. Bxd2 axb3 17. axb3 {½-½ Livaic,L (2565)-Banusz,T (2622) CRO-chT1A 30th 2022 (8.1)}) 9... f5 {[%emt 0:14:51] White has an edge.} 10. Nxe4 {[%emt 0:02:28]} dxe4 {[%emt 0:10:54]} 11. Ne5 {[%emt 0:00:38]} g5 {[%emt 0:02:02]} 12. Be3 {[%emt 0:02:49]} c5 {[%emt 0:05:15]} 13. Qd2 {[%emt 0:14:16]} cxd4 {[%emt 0:12:19]} 14. Bxd4 {[%emt 0:00:41]} ({Reject} 14. Qxd4 Qc7 15. f4 Ra6 $15) 14... Bb4 {[%emt 0:08:34]} 15. Qe3 {[%emt 0:00:10]} Bxe1 {[%emt 0:00:05]} 16. Rxe1 {[%emt 0:00:14]} Ra6 {[%emt 0:09:01]} 17. c5 {[%emt 0:23:06]} (17. f3 $11) 17... Nc6 $15 {[%emt 0:00:58]} 18. Nxc6 {[%emt 0:08:43]} Rxc6 {[%emt 0:00:06]} ({Of course not} 18... bxc6 19. Be5 $11) 19. f3 {[%emt 0:01:33]} Qe7 {[%emt 0:05:34] White must now prevent ...e5.} 20. fxe4 {[%emt 0:04:48]} f4 {[%emt 0:00:16]} 21. gxf4 {[%emt 0:01:59]} gxf4 {[%emt 0:02:37]} 22. Qb3 {[%emt 0:00:46]} Rf7 {[%emt 0:02:07] ...e5 is the strong threat.} 23. e5 $1 {[%emt 0:05:06] [#]} Rxc5 {[%emt 0:07:58]} (23... Rc7 $1 $17) 24. Bxc5 $11 {[%emt 0:02:27] The position is equal.} Qxc5+ {[%emt 0:00:00]} 25. Kh1 {[%emt 0:00:44]} Qxe5 {[%emt 0:00:05]} 26. Bf3 {[%emt 0:10:07]} b5 {[%emt 0:02:44]} 27. Qd3 {[%emt 0:03:24]} (27. Qd1 $5 {[%cal Rd1d8]} Bd7 28. Rg1+ Kh8 29. Qe1 $11) 27... Bd7 {[%emt 0:01:44]} (27... Qxb2 $2 28. Rg1+ $18) 28. Rg1+ {[%emt 0:01:08]} Kh8 {[%emt 0:00:18]} 29. b3 {[%emt 0:04:43]} (29. Qd2 $5 {[%cal Rd2a5]}) 29... Rg7 {[%emt 0:05:06]} (29... Qc5 {is more complex.} 30. Qe4 Qc7 31. Rg5 Re7) 30. Rxg7 {[%emt 0:01:27]} Qxg7 {[%emt 0:00:08][%mdl 4096] Endgame KQB-KQB} 31. Qd2 {[%emt 0:02:32]} Qa1+ {[%emt 0:05:14]} 32. Kg2 {[%emt 0:00:08]} Qg7+ {[%emt 0:00:03]} 33. Kf2 {[%emt 0:03:38]} e5 {[%emt 0:01:12]} 34. Qd6 {[%emt 0:01:42][%mdl 1024] [#] And now Qb8+ would win. White has compensation.} h5 $1 {[%emt 0:01:48]} 35. Be4 {[%emt 0:01:25] Qb8+ would be deadly.} Kg8 {[%emt 0:00:37]} 36. Bd5+ {[%emt 0:00:37]} Kh7 {[%emt 0:00:32]} 37. Be4+ {[%emt 0:00:08]} Kg8 {[%emt 0:00:02]} 38. Bd5+ {[%emt 0:00:56]} Kh7 {[%emt 0:00:05]} 39. Be4+ {[%emt 0:00:26] Weighted Error Value: White=0.08 (flawless) /Black=0.06 (flawless)} 1/2-1/2